Cogmind - Beta 17.1 @@@ ROGUE MODE // 2026.09.13 @ 18:48:57 Player: stixxx Result: Destroyed by Y-45 Defender with Beam Rifle Performance ------------- Evolutions (1) 500 Regions Visited (2) 400 Robots Destroyed (26) 130 Value Destroyed (708) 708 Prototype IDs (5) 100 Alien Tech Used (0) 0 Bonus (0) 0 TOTAL SCORE: 1838 Bonus ------- None Cogmind --------- Core Integrity 0/400 Matter 14/300 Energy 99/100 System Corruption 1% Temperature Cool (9) Movement Core (100) Ox1 Location -9/Materials Parts ------- > --- POWER (1) -------- (None) > --- PROPULSION (3) --- (None) > --- UTILITY (3) ------ Small Storage Unit > --- WEAPON (2) ------- (None) > --- INVENTORY (8) ---- Faulty Improved Flight Unit Heat Sink Cooling System Signal Interpreter Peak State ------------ > --- POWER ------------ Light Nuclear Core > --- PROPULSION ------- Aluminum Leg Improved Aluminum Leg Improved Aluminum Leg > --- UTILITY ---------- Heat Sink Small Storage Unit Hardened Light Armor Plating > --- WEAPON ----------- Improved Assault Rifle > --- INVENTORY -------- Improved Ion Engine Improved Flight Unit Heat Sink Cooling System Signal Interpreter Particle Gun Grenade Launcher [Rating: 16] Favorites ----------- Power Ion Engine Engine Ion Engine Power Core Light Nuclear Core Propulsion Aluminum Leg Treads Light Treads Leg Aluminum Leg Utility Small Storage Unit Device Heat Sink Storage Small Storage Unit Protection Hardened Light Armor Plating Weapon Improved Assault Rifle Energy Gun Particle Gun Ballistic Gun Improved Assault Rifle Launcher Grenade Launcher Special Melee Weapon Datajack Build | -11 -10 -9 ------- Run | Yrd Mat Mat Slots Evolved 2 | . . 2 Power . | . . . Propulsion 1 | . . 1 Utility 1 | . . 1 Weapon . | . . . Parts Attached 22 | 7 8 7 Power 4 | 1 1 2 Engine 3 | 1 1 1 Core 1 | . . 1 Reactor . | . . . Propulsion 8 | 4 2 2 Treads 2 | 2 . . Leg 6 | 2 2 2 Wheel . | . . . Hover . | . . . Flight . | . . . Utility 3 | 1 1 1 Device 1 | . 1 . Storage 1 | 1 . . Processor . | . . . Hackware . | . . . Protection 1 | . . 1 Artifact . | . . . Weapon 7 | 1 4 2 Energy Gun 1 | . . 1 Energy Cannon . | . . . Ballistic Gun 2 | 1 1 . Ballistic Cannon . | . . . Launcher 2 | . 1 1 Special Weapon . | . . . Impact Weapon . | . . . Slashing Weapon . | . . . Piercing Weapon . | . . . Special Melee Weapon 2 | . 2 . Unidentified Prototypes 1 | . 1 . Parts Lost 15 | . 5 10 Power 2 | . 1 1 Propulsion 5 | . 2 3 Utility 2 | . . 2 Weapon 6 | . 2 4 Highest Loss Streak 9 | . 2 9 To Critical Strikes . | . . . Average Backups 3 | . 1 5 Power . | . . . Propulsion . | . . . Utility 1 | . . 2 Weapon 1 | . 1 1 Tool/Special . | . . . Unused Backups 7 | 2 . 5 Power . | . . . Propulsion 3 | 2 . 1 Utility 3 | . . 3 Weapon 1 | . . 1 Tool/Special . | . . . Average Slot Usage (%) 76 | . 75 78 Engine 11 | . 12 10 Treads 8 | . 15 . Leg 17 | . 8 27 Device 6 | . 2 10 Storage 12 | . 14 11 Protection 2 | . . 6 Ballistic Gun 9 | . 8 10 Launcher 2 | . 4 . Special Melee Weapon 4 | . 6 1 Peak Build Rating 16 | 5 9 16 Average Rating 8 | 3 5 12 On Entrance 4 | . 5 9 Avg Prop Armor Cover (%) . | . . . Naked Turns . | . . . Heaviest Build 21 | 9 15 21 Greatest Support 40 | 40 40 36 Greatest Overweight (x) 3 | . 3 2 Average Overweight (x) . | . . . Largest Inventory Capacity 8 | 8 8 8 Average Capacity 7 | 7 8 8 Most Carried 8 | 5 5 8 Average Carried 3 | 1 1 5 Final Capacity 8 | 8 8 8 Final Carried 5 | . 5 4 Class Distribution -------------------- 83% | Mutant 16% | Scavenger-Mutant Dominant Class ---------------- Mutant | -10/Materials Mutant | -9/Materials Resources | -11 -10 -9 ----------- Run | Yrd Mat Mat Matter Collected 338 | 136 75 127 Remotely . | . . . Salvage Created 742 | . 266 476 Parts 44 | . 15 29 Haulers Intercepted . | . . . Recyclers Shooed 1 | . 1 . Parts Field Recycled . | . . . Retrieved Matter . | . . . Parts Self-Destructed . | . . . Prevented . | . . . Parts Restored . | . . . Kills | -11 -10 -9 ------- Run | Yrd Mat Mat Combat Hostiles Destroyed 23 | . 8 15 Guns 15 | . 4 11 AOE 8 | . 4 4 Classes Destroyed 5 | . 3 2 Worker 1 | . . 1 Recycler 2 | . 2 . Swarmer 7 | . 3 4 Grunt 14 | . 5 9 Sentry 2 | . . 2 Best Kill Streak 6 | . 3 6 Combat Bots Only 5 | . 3 5 Max Kills in Single Turn 2 | . 1 2 Gunslinging . | . . . Exploded 2 | . 1 2 Melee . | . . . Uniques/NPCs Destroyed . | . . . Combat | -11 -10 -9 -------- Run | Yrd Mat Mat Hostile Shots Fired 198 | . 54 144 Missed 52 | . 11 41 Hits 146 | . 43 103 Projectile 146 | . 43 103 Critical Strikes 2 | . . 2 Damage Taken 2033 | . 738 1295 Core 592 | . 190 402 Absorbed by Shields . | . . . Core Remaining (%) 62 | 100 24 . Volleys Fired 108 | . 59 49 Largest 1 | . 1 1 Hottest 65 | . 30 65 Shots Fired 108 | . 59 49 Gun 97 | . 51 46 Cannon . | . . . Launcher 11 | . 8 3 Special . | . . . Kinetic 89 | . 51 38 Thermal 8 | . . 8 Explosive 11 | . 8 3 Electromagnetic . | . . . Robot Hit Streak 9 | . 9 8 Robot Miss Streak 4 | . 4 4 Penetration Max . | . . . Secondary Targets . | . . . Shots Hit Robots 78 | . 45 33 Core Hits 50 | . 24 26 Critical Kills . | . . . Critical Parts Destroyed . | . . . Critical Strikes . | . . . Melee Attacks 5 | . 5 . Impact . | . . . Slashing . | . . . Piercing . | . . . Sneak Attacks 5 | . 5 . Combat Hostiles . | . . . Follow-up Attacks . | . . . Damage Inflicted 1546 | . 789 757 Guns 748 | . 263 485 Cannons . | . . . Explosions 758 | . 526 232 Melee . | . . . Ramming 40 | . . 40 Kinetic 656 | . 263 393 Thermal 92 | . . 92 Explosive 758 | . 526 232 Electromagnetic . | . . . Impact . | . . . Slashing . | . . . Piercing . | . . . Highest Corruption 4 | . 4 1 Average Corruption 1 | . 1 1 Corruption Purged . | . . . Corruption Blocked . | . . . Effects 7 | . 4 3 Message Errors 2 | . 1 1 Matter Fused 2 | . 1 1 Heat Flow Errors 1 | . 1 . Data Loss (minor) 2 | . 1 1 Overload Shots . | . . . Overflow Damage 51 | . 51 . Projectiles . | . . . Explosions 51 | . 51 . Melee . | . . . Knockbacks 1 | . . 1 Impact 1 | . . 1 Kinetic . | . . . Secondary . | . . . Self-Inflicted Damage 199 | . 153 46 Shots 10 | . 8 2 Rammed . | . . . Targets Rammed 16 | . . 16 Kicked 16 | . . 16 Crushed . | . . . Highest Temperature 188 | . 90 188 Average Temperature 59 | . 21 91 Received Heat Transfer 777 | . 306 471 Siege Activations . | . . . Martial Activations . | . . . Shielding Activations . | . . . Robots Disrupted . | . . . Combat Hostiles . | . . . Robots Corrupted . | . . . Combat Hostiles . | . . . Parts Fried . | . . . Impact Corruptions . | . . . Robots Melted . | . . . Combat Hostiles . | . . . Parts Melted . | . . . Heat Transferred 222 | . . 222 Parts Sabotaged . | . . . Parts Stolen . | . . . Parts Stripped . | . . . Power Chain Reactions . | . . . Alert | -11 -10 -9 ------- Run | Yrd Mat Mat Maximum Alert Level . | . . . Low Security (%) 100 | 100 100 100 Level 1 . | . . . Level 2 . | . . . Level 3 . | . . . Level 4 . | . . . Level 5 . | . . . High Security . | . . . Max Security . | . . . Peak Influence 134 | . 131 134 Initial 16 | . . 16 Average 53 | . 55 59 Influence Increases 761 | . 273 488 Destroy 0b10 Robot/C 460 | . 160 300 Destroy 0b10 Robot/NC 15 | . 10 5 Destroy Leader 100 | . 30 70 Successful Hack 19 | . 17 2 Disable Machine 30 | . 15 15 Destroy Structure 47 | . 26 21 Lose Combat Pursuer 90 | . 15 75 Influence Decreases 633 | . 234 399 Entered New Map 23 | . . 23 Time Decay 408 | . 184 224 Lost Part 140 | . 50 90 Purge Threat 62 | . . 62 Squads Dispatched 5 | . 1 4 Investigation 3 | . . 3 Extermination . | . . . Reinforcement 2 | . 1 1 Assault . | . . . Garrison . | . . . Intercept . | . . . Searches Triggered . | . . . Construction Impeded . | . . . Haulers Reinforced . | . . . Active Scanning Responses . | . . . Cargo Convoy Interrupts . | . . . Stealth | -11 -10 -9 --------- Run | Yrd Mat Mat Distress Signals 4 | . 1 3 Communications Jammed . | . . . Distress Signals . | . . . Times Spotted 36 | . 12 24 Peak Tracking Total 9 | . 4 9 Tactical Retreats 4 | . 1 3 Traps | -11 -10 -9 ------- Run | Yrd Mat Mat Traps Triggered 6 | . 4 2 Indirectly . | . . . Trap Hack Attempts 25 | . 25 . Triggered . | . . . Disarmed 6 | . 6 . Reprogrammed 2 | . 2 . Reused . | . . . Traps Extracted . | . . . Installed . | . . . Triggered . | . . . Machines | -11 -10 -9 ---------- Run | Yrd Mat Mat Machines Disabled 2 | . 1 1 Max in Single Turn 1 | . 1 1 Machines Repaired . | . . . Machines Dismantled . | . . . Machines Sabotaged . | . . . Overloaded Fab Kills . | . . . Hacking | -11 -10 -9 --------- Run | Yrd Mat Mat Machines Accessed 12 | . 7 5 Terminals 10 | . 7 3 Fabricators . | . . . Repair Stations . | . . . Recycling Units 1 | . . 1 Scanalyzers 1 | . . 1 Garrison Access . | . . . Total Hacks 41 | . 24 17 Successful 27 | . 18 9 Failed 14 | . 6 8 Catastrophic 2 | . . 2 Database Lockouts . | . . . Manual . | . . . Terminals 35 | . 24 11 Fabricators . | . . . Repair Stations . | . . . Recycling Units 2 | . . 2 Scanalyzers 4 | . . 4 Garrison Access . | . . . Terminal Hacks 22 | . 18 4 Record 9 | . 6 3 Prototype ID Bank 2 | . 2 . Branch Access Points 1 | . 1 . Alert Level 2 | . 2 . Unreport Threat 1 | . . 1 Locate Traps 2 | . 2 . Disarm Traps 1 | . 1 . Dispatch Records 1 | . 1 . Patrol Status 1 | . 1 . Recall Investigation 1 | . 1 . Zone Layout 1 | . 1 . Fabricator Hacks . | . . . Repair Station Hacks . | . . . Recycling Unit Hacks 2 | . . 2 Process 1 | . . 1 Report Inventory 1 | . . 1 Scanalyzer 3 | . . 3 Insert Component 1 | . . 1 Analyze 1 | . . 1 Retrieve Study 1 | . . 1 Garrison Access Hacks . | . . . Unauthorized Hacks . | . . . Terminals . | . . . Fabricators . | . . . Repair Stations . | . . . Recycling Units . | . . . Scanalyzers . | . . . Garrison Access . | . . . Data Cores Recovered . | . . . Used . | . . . Hacking Detections 10 | . 6 4 Full Trace Events 7 | . 3 4 Feedback Events 1 | . . 1 Corruption 1 | . . 1 Feedback Blocked . | . . . Robot Schematics Acquired . | . . . Robots Built . | . . . Authchips . | . . . Time . | . . . Total Robot Build Rating . | . . . Part Schematics Acquired 1 | . . 1 Parts Built . | . . . Authchips . | . . . Time . | . . . Total Part Build Rating . | . . . Part Studies Acquired 1 | . . 1 Parts Repaired . | . . . Time . | . . . Parts Recycled . | . . . Recycled Matter 7 | . . 7 Retrieved Matter . | . . . Retrieved Components . | . . . Parts Scanalyzed 1 | . . 1 Part Schematics Acquired 1 | . . 1 Parts Damaged . | . . . Bothacking | -11 -10 -9 ------------ Run | Yrd Mat Mat Used RIF Installer . | . . . Robots Hacked 2 | . 2 . Non-combat 2 | . 2 . Combat . | . . . Robot Hacks Applied 4 | . 4 . parse_system 2 | . 2 . no_distress 2 | . 2 . Relay Couplers Released . | . . . Fabnet Peak Effective % . | . . . Robots Rewired . | . . . Allies Hacked . | . . . Hacks Repelled . | . . . Allies | -11 -10 -9 -------- Run | Yrd Mat Mat Total Allies . | . . . Largest Group . | . . . Highest-Rated Group . | . . . Highest-Rated Ally . | . . . Total Orders . | . . . Ally Attacks . | . . . Total Damage . | . . . Kills . | . . . Allies Corrupted . | . . . Allies Melted . | . . . Intel | -11 -10 -9 ------- Run | Yrd Mat Mat Active Infowar (turns) . | . . . Robot Analysis Total . | . . . Derelict Logs Recovered . | . . . Drone Launches . | . . . Drone Recoveries . | . . . Exploration | -11 -10 -9 ------------- Run | Yrd Mat Mat Turns Passed 1235 | 69 654 512 Spaces Moved 690 | 46 317 327 Core 32 | 17 8 7 Treads 193 | 19 174 . Legs 465 | 10 135 320 Wheels . | . . . Hover . | . . . Flight . | . . . Fastest Speed 50 | 50 100 100 Average Speed 131 | 110 154 112 Slowest Speed 200 | 160 200 150 Overloaded Moves . | . . . Propulsion Burnouts . | . . . Robots Hopped . | . . . Potential Cave-ins . | . . . Cave-ins Triggered . | . . . Exploration Rate (%) 37 | 4 68 41 Regions Visited 2 Branch Regions . Pre-discovered Areas . | . . . Known Exits Taken . | . . . Unknown Exits Taken 2 | 1 1 . Scrap Searched . | . . . Spaces Dug . | . . . Terrain Destroyed 44 | . 24 20 Melee . | . . . Projectile . | . . . AOE 44 | . 24 20 Terrain Rammed . | . . . Walls Destroyed . | . . . Machines Disabled . | . . . Actions | -11 -10 -9 --------- Run | Yrd Mat Mat Total 922 | 67 432 423 Wait 7 | . 2 5 Move 688 | 45 316 327 Hop . | . . . Pick Up 30 | 9 12 9 Fast Attach . | . . . Attach 25 | 7 10 8 Detach 7 | 2 3 2 Swap 2 | . . 2 Drop 9 | 4 . 5 Fire 108 | . 59 49 Melee 5 | . 5 . Ram . | . . . Kick 16 | . . 16 Crush . | . . . Escape Stasis . | . . . Rewire . | . . . Trap 25 | . 25 . Miscellaneous . | . . . Route ------- -11/Scrapyard -10/Materials (discovered 3 exits: *Mat / *Min x2) -9/Materials (discovered 1 exit: [*Min]) History --------- Turn | Location | Event 8 | -11/Scrapyard | Discovered new exit (range 15) 70 | -11/Scrapyard | Entered Materials 276 | -10/Materials | Identified exit to Mines 318 | -10/Materials | Build established: Mutant 403 | -10/Materials | Core integrity fell below 50% 679 | -10/Materials | Discovered new exit (range 16) 724 | -10/Materials | Entered another Materials area 724 | -9/Materials | Evolved 2 slots: Propulsion x1, Utility x1 1105 | -9/Materials | Discovered new exit (range 9) 1218 | -9/Materials | Core integrity fell below 50% 1229 | -9/Materials | Core integrity fell below 20% 1236 | -9/Materials | Destroyed by Y-45 Defender with Beam Rifle Last Messages --------------- Kicked G-34 Mercenary. Kicked G-34 Mercenary out of the way. Kicked G-34 Mercenary. Kicked G-34 Mercenary out of the way. G-34 Mercenary destroyed. Acquired 10 matter. Heat Sink destroyed. Critical hit (Burn: +37). Imp. Assault Rifle destroyed. Hrd. Light Armor Plating destroyed. Imp. Aluminum Leg+ destroyed. Imp. Ion Engine destroyed. Aluminum Leg destroyed. Imp. Aluminum Leg+ destroyed. Particle Gun destroyed. G-34 Mercenary destroyed. Y-45 Defender destroyed. [Achievement: Resistances Are Futile] G-47 Trooper destroyed. Grenade Launcher destroyed. Map ----- +----------------------------------------------------+ | | | | | | | | | | | | | | | | | | | | | ?????????????????????????????????????????????????? | | ?????????????????????????????????????????????????? | | ?????????????????????????????????????????????????? | | ?????????????????????????????????????????????????? | | ?????????????????????????????????????????????????? | | ?????????????????????????????????????????????????? | | ?????????????????????????????????????????????????? | | ?????????????????????????????????????????????????? | | ?????????????????????????????????????????????????? | | ?????????????????????????????????????????????????? | | ?????????????????????????????????????????????????? | | ?????????????????#####???????????????????????????? | | ################## #####??????????????????????? | | # #??????????????????????? | | #??????????????????????? | | @##?????????????????????? | | = g ##### #???????????? | | # !%* ! #???????????? | | # ########## # Y ##### +???????????? | | # #????????# [g% #??????#???????????? | | # #????????# * Y""""" #??????????????????? | | # #????????# ### !%""T"" #??????????????????? | | # #????????# #?# Y*%= #??????????????????? | | # #???????? ?## # [ ####??????????????????? | | # #??????? ??## ##?????????????????????? | | # #??????+ ??? ##??????????????????????? | | # #??????# ???# #???????????????????????? | | # #??????? ???## ##???????????????????????? | | # #??????###+##???? #????????????????????????? | | # #???????????????? #????????????????????????? | | # #########???????? ????????????????????????? | | # #???????? ????????????????????????? | | # #???????? ????????????????????????? | | # """" #????????+#????????????????????????? | | # """" #??????#???????????????????????????? | | # """" #???? #???????????????????????????? | | # #?? #???????????????????????????? | | # # | #???????????????????????????? | | # ] + [ #???????????????????????????? | | # #???????????????????????????? | +----------------------------------------------------+ Best States ------------- Heat Dissipation 38 Energy Generation 12 Energy Capacity 265 Matter Stores 177 Matter Capacity 300 Sight Range 16 Terrain Scan Density 10 Armor Coverage 150 Evasion (%) 55 Recoil Reduction 2 Item Schematics ----------------- Signal Interpreter | -9/Materials | Scanalyzed Robot Schematics ------------------ None Fabricated ------------ Nothing Repaired ---------- Nothing Studied --------- Imp. Aluminum Leg | -9/Materials | Hacked Alien Tech Used ----------------- None Achievements -------------- Everything Is Under Control Ghost 'Em Item+ Novice Programmer Oops Resistances Are Futile Safety First Challenges ------------ None Game ------ Seed ArmorNodeNanosword Manual? 0 Play Time 00:29:04 Cumulative 2.3 hours Start 2026.09.13 @ 18:21:42 End 2026.09.13 @ 18:48:57 Sessions 1 Manual Loads 0 Difficulty Rogue Special Mode None Game No. 6 Rogue 6 Adventurer 0 Explorer 0 Win Type - Total 0 Types 0/0/0/0/0/0/0/0/0/0 Lore% 1 Gallery% 3 Achievement% 4 Wizard Run 0 Options --------- Layout 1 ASCII 0 Keyboard 1 Movement Numpad Keybinds 0 Fullscreen 1 Font 24/Smallcaps Map View 50x35 Zoom Use 0% Tactical HUD 0 Map Filters NONE Filters NONE Steam 1 RUN: 5951ecb0-41a9-436a-a947-22dc90ca17ab